fUSD/lending_fUSD_20250312
["ID","MTS","AMOUNT","RATE_DAILY","PERIOD"]
[355972622,1741747843528,-500.0,9.999e-05,2]
[355972623,1741747843537,-795.34,9.999e-05,2]
[355972624,1741747843546,-500.0,9.999e-05,2]
[355972625,1741747843555,-732.65,9.999e-05,2]
[355972626,1741747843564,-500.0,9.999e-05,2]
[355972627,1741747843573,-500.0,9.999e-05,2]
[355972628,1741747843583,-638.34,9.999e-05,2]
[355972629,1741747843592,-1262.42,9.999e-05,2]
[355972630,1741747843601,-500.0,9.999e-05,2]
[355972631,1741747843610,-500.0,9.999e-05,2]
[355972632,1741747843620,-565.95,9.999e-05,2]
[355972633,1741747843629,-500.0,9.999e-05,2]
[355972634,1741747843639,-500.0,9.999e-05,2]
[355972635,1741747843648,-500.0,9.999e-05,2]
[355972636,1741747843657,-500.0,9.999e-05,2]
[355972637,1741747843666,-500.0,9.999e-05,2]
[355972638,1741747843676,-500.0,9.999e-05,2]
[355972639,1741747843685,-624.05,9.999e-05,2]
[355972640,1741747843694,-625.12,9.999e-05,2]
[355972641,1741747843703,-500.0,9.999e-05,2]
[355972642,1741747843712,-500.0,9.999e-05,2]
[355972643,1741747843722,-574.2,9.999e-05,2]
[355972644,1741747843731,-500.0,9.999e-05,2]
[355972645,1741747843742,-500.0,9.999e-05,2]
[355972646,1741747843751,-743.06,9.999e-05,2]
[355972648,1741747843761,-734.07,9.999e-05,2]
[355972650,1741747843770,-500.0,9.999e-05,2]
[355972653,1741747843780,-500.0,9.999e-05,2]
[355972654,1741747843789,-500.0,9.999e-05,2]
[355972655,1741747843798,-528.7,9.999e-05,2]
[355972656,1741747843807,-414.5296284,9.999e-05,2]
[355972657,1741747843816,-500.0,9.999e-05,2]
[355972658,1741747843826,-500.0,9.999e-05,2]
[355972659,1741747843835,-585.21,9.999e-05,2]
[355972660,1741747843844,-500.0,9.999e-05,2]
[355972661,1741747843853,-647.89,9.999e-05,2]
[355972662,1741747843862,-500.0,9.999e-05,2]
[355972663,1741747843872,-612.24,9.999e-05,2]
[355972664,1741747843881,-714.94,9.999e-05,2]
[355972665,1741747843890,-684.91,9.999e-05,2]
[355972666,1741747843899,-774.28,9.999e-05,2]
[355972667,1741747843908,-531.32,9.999e-05,2]
[355972668,1741747843918,-500.0,9.999e-05,2]
[355972669,1741747843927,-243.72682941,9.999e-05,2]
[355972670,1741747843936,-500.0,9.999e-05,2]
[355972671,1741747843945,-1379.11,9.999e-05,2]
[355972672,1741747843954,-1065.47,9.999e-05,2]
[355972673,1741747843963,-500.0,9.999e-05,2]
[355972674,1741747843972,-500.0,9.999e-05,2]
[355972675,1741747843984,-500.0,9.999e-05,2]
[355972676,1741747843994,-507.74,9.999e-05,2]
[355972677,1741747844003,-500.0,9.999e-05,2]
[355972678,1741747844012,-500.0,9.999e-05,2]
[355972679,1741747844023,-500.0,9.999e-05,2]
[355972680,1741747844032,-515.45,9.999e-05,2]
[355972681,1741747844041,-500.0,9.999e-05,2]
[355972682,1741747844051,-500.0,9.999e-05,2]
[355972683,1741747844063,-532.64,9.999e-05,2]
[355972684,1741747844072,-500.0,9.999e-05,2]
[355972685,1741747844082,-500.0,9.999e-05,2]
[355972686,1741747844091,-728.85,9.999e-05,2]
[355972687,1741747844100,-500.0,9.999e-05,2]
[355972688,1741747844109,-548.39,9.999e-05,2]
[355972689,1741747844119,-500.0,9.999e-05,2]
[355972690,1741747844128,-500.0,9.999e-05,2]
[355972691,1741747844137,-500.0,9.999e-05,2]
[355972692,1741747844146,-500.0,9.999e-05,2]
[355972693,1741747844155,-500.0,9.999e-05,2]
[355972694,1741747844165,-185.51644069,9.999e-05,2]
[355972695,1741747844174,-500.0,9.999e-05,2]
[355972696,1741747844183,-500.0,9.999e-05,2]
[355972697,1741747844192,-1760.04,9.999e-05,2]
[355972698,1741747844202,-550.99,9.999e-05,2]
[355972699,1741747844211,-500.0,9.999e-05,2]
[355972700,1741747844221,-530.81,9.999e-05,2]
[355972701,1741747844230,-500.0,9.999e-05,2]
[355972702,1741747844241,-500.0,9.999e-05,2]
[355972703,1741747844250,-500.0,9.999e-05,2]
[355972704,1741747844259,-525.84,9.999e-05,2]
[355972705,1741747844268,-522.74,9.999e-05,2]
[355972706,1741747844278,-500.0,9.999e-05,2]
[355972707,1741747844287,-367.47890322,9.999e-05,2]
[355972708,1741747844296,-1072.0,0.0001,2]
[355972709,1741747844306,-8685.39506144,0.0001,2]
[355972710,1741747844315,-1410009.81274944,0.0001,2]
[355972711,1741747844496,-599.09324474,0.0001,2]
[355972712,1741747844508,-1060.8,0.0001,2]
[355972713,1741747844739,-500.0,9.998e-05,2]
[355972714,1741747844748,-270.05845964,0.0001,2]
[355972715,1741747844759,-10911.02996349,0.0001,2]
[355972716,1741747844770,-4011.29080858,0.0001,2]
[355972717,1741747845068,-1795.66259684,0.0001,2]
[355972718,1741747845080,-1039.9999,0.0001,2]
[355972719,1741747845091,-331.40167,0.0001,2]
[355972720,1741747845103,-1012.97035628,0.0001,2]
[355972746,1741747846125,-336.47,9.216e-05,2]
[355972748,1741747846134,-596.59,9.998e-05,2]
[355972750,1741747846143,-198.84187909,0.0001,2]
[355972755,1741747846231,-4966.293395,0.0001,2]
[355972756,1741747846244,-4131.15,0.0001,2]
[355972757,1741747846256,-482.23340682,0.0001,2]
[355972758,1741747846561,-599.38775637,0.0001,2]
[355972763,1741748106470,-169.29,9.206e-05,2]
[355972765,1741748110179,-1.06,9.206e-05,2]
[355972766,1741748110475,-150.0,9.217e-05,2]
[355972767,1741748110501,-98.94,9.228e-05,2]
[355972768,1741748116895,-151.06,9.228e-05,2]
[355972769,1741748116917,-206.68,9.896e-05,2]
[355972801,1741748581161,1029.51,8.219e-05,2]
[355972810,1741749032292,-306.0,9.16e-05,2]
[355972811,1741749032399,-120.19,9.16e-05,2]
[355972812,1741749032409,-1000.0,9.166e-05,2]
[355972813,1741749032419,-837.101,9.825e-05,2]
[355972814,1741749032428,-295.256,9.825e-05,2]
[355972815,1741749032440,-300.0,9.897e-05,2]
[355972816,1741749032449,-1000.0,9.898e-05,2]
[355972817,1741749032459,-511.1429,9.898e-05,2]
[355972818,1741749032469,-1697.1355,9.898e-05,2]
[355972819,1741749032479,-14661.80798927,9.898e-05,2]
[355972820,1741749032490,-373.6409856,9.898e-05,2]
[355972821,1741749032507,-876.49,9.898e-05,2]
[355972824,1741749038155,-343.53394244,9.899e-05,2]
[355972825,1741749038166,-656.46605756,9.899e-05,2]
[355972826,1741749038175,-1257.44181535,9.9e-05,2]
[355972827,1741749038284,-524.45281455,9.9e-05,2]
[355972828,1741749038318,-698.6155701,9.9e-05,2]
[355972829,1741749038327,-3860.0394,9.9e-05,2]
[355972830,1741749038336,-5000.0,9.9e-05,2]
[355972831,1741749038345,-496.05467852,9.973e-05,2]
[355972832,1741749038359,-240.95640148,9.973e-05,2]
[355972833,1741749038368,-1552.091,9.997e-05,2]
[355972834,1741749038378,-1010.34448478,9.997e-05,2]
[355972835,1741749038387,-150.0,9.997e-05,2]
[355972836,1741749038397,-571.18,9.998e-05,2]
[355972837,1741749038406,-500.0,9.998e-05,2]
[355972838,1741749038415,-393.25969139,9.998e-05,2]
[355972839,1741749038424,-500.0,9.998e-05,2]
[355972840,1741749038434,-500.0,9.998e-05,2]
[355972841,1741749038444,-500.0,9.998e-05,2]
[355972842,1741749038453,-500.0,9.998e-05,2]
[355972843,1741749038463,-500.0,9.998e-05,2]
[355972844,1741749038472,-500.0,9.998e-05,2]
[355972845,1741749038481,-162.30861643,9.998e-05,2]
[355972846,1741749038500,-337.69138357,9.998e-05,2]
[355972847,1741749038509,-500.0,9.998e-05,2]
[355972848,1741749038519,-500.0,9.998e-05,2]
[355972849,1741749038531,-549.8516503,9.998e-05,2]
[355972850,1741749038543,-0.0583497,9.998e-05,2]
[355972851,1741749038552,-500.0,9.998e-05,2]
[355972852,1741749038561,-646.71,9.998e-05,2]
[355972853,1741749038570,-552.14,9.998e-05,2]
[355972854,1741749038580,-500.0,9.998e-05,2]
[355972855,1741749038589,-500.0,9.998e-05,2]
[355972856,1741749038598,-631.93,9.998e-05,2]
[355972857,1741749038607,-500.0,9.998e-05,2]
[355972858,1741749038616,-500.0,9.998e-05,2]
[355972859,1741749038625,-500.0,9.998e-05,2]
[355972860,1741749038634,-500.0,9.998e-05,2]
[355972861,1741749038644,-500.0,9.998e-05,2]
[355972862,1741749038652,-500.0,9.998e-05,2]
[355972863,1741749038662,-572.38,9.998e-05,2]
[355972864,1741749038672,-500.0,9.998e-05,2]
[355972865,1741749038681,-500.0,9.998e-05,2]
[355972866,1741749038691,-500.0,9.998e-05,2]
[355972867,1741749038700,-500.0,9.998e-05,2]
[355972868,1741749038709,-500.0,9.998e-05,2]
[355972869,1741749038718,-500.0,9.998e-05,2]
[355972870,1741749038728,-500.0,9.998e-05,2]
[355972871,1741749038737,-588.64,9.998e-05,2]
[355972872,1741749038746,-500.0,9.998e-05,2]
[355972873,1741749038756,-538.18,9.998e-05,2]
[355972874,1741749038766,-500.0,9.998e-05,2]
[355972875,1741749038775,-500.0,9.998e-05,2]
[355972876,1741749038785,-500.95,9.998e-05,2]
[355972877,1741749038794,-276.02133295,9.998e-05,2]
[355972878,1741749038804,-500.0,9.998e-05,2]
[355972879,1741749038813,-500.0,9.998e-05,2]
[355972880,1741749038823,-500.0,9.998e-05,2]
[355972881,1741749038833,-500.0,9.998e-05,2]
[355972882,1741749038843,-500.0,9.998e-05,2]
[355972883,1741749038852,-496.79031735,9.998e-05,2]
[355972884,1741749038865,-5.46968265,9.998e-05,2]
[355972885,1741749038875,-500.0,9.998e-05,2]
[355972886,1741749038885,-632.86,9.998e-05,2]
[355972887,1741749038895,-500.0,9.998e-05,2]
[355972888,1741749038904,-290.20390569,9.998e-05,2]
[355972889,1741749038913,-572.16,9.998e-05,2]
[355972890,1741749038923,-500.0,9.998e-05,2]
[355972891,1741749038932,-500.0,9.998e-05,2]
[355972892,1741749038942,-500.0,9.998e-05,2]
[355972893,1741749038951,-500.0,9.998e-05,2]
[355972894,1741749038960,-500.0,9.998e-05,2]
[355972895,1741749038970,-528.45,9.998e-05,2]
[355972896,1741749038979,-500.0,9.998e-05,2]
[355972897,1741749038990,-500.0,9.998e-05,2]
[355972898,1741749039001,-500.0,9.998e-05,2]
[355972899,1741749039010,-500.0,9.998e-05,2]
[355972900,1741749039025,-583.88,9.998e-05,2]
[355972901,1741749039036,-500.0,9.998e-05,2]
[355972902,1741749039045,-500.0,9.998e-05,2]
[355972903,1741749039056,-500.0,9.998e-05,2]
[355972904,1741749039066,-500.0,9.998e-05,2]
[355972905,1741749039075,-500.0,9.998e-05,2]
[355972906,1741749039085,-500.0,9.998e-05,2]
[355972907,1741749039095,-500.0,9.998e-05,2]
[355972908,1741749039104,-500.0,9.998e-05,2]
[355972909,1741749039114,-500.0,9.998e-05,2]
[355972910,1741749039124,-500.0,9.998e-05,2]
[355972911,1741749039134,-574.98,9.998e-05,2]
[355972912,1741749039144,-500.0,9.998e-05,2]
[355972913,1741749039154,-500.0,9.998e-05,2]
[355972914,1741749039163,-500.0,9.998e-05,2]
[355972915,1741749039174,-500.0,9.998e-05,2]
[355972916,1741749039183,-500.0,9.998e-05,2]
[355972917,1741749039194,-500.0,9.998e-05,2]
[355972918,1741749039204,-500.0,9.998e-05,2]
[355972919,1741749039213,-643.09,9.998e-05,2]
[355972920,1741749039223,-174.63208095,9.998e-05,2]
[355972921,1741749039237,-325.36791905,9.998e-05,2]
[355972922,1741749039247,-188.12908416,9.998e-05,2]
[355972926,1741749040180,-311.87091584,9.998e-05,2]
[355972927,1741749040190,-489.94330331,9.998e-05,2]
[355972928,1741749040203,-10.05669669,9.998e-05,2]
[355972929,1741749040212,-356.97330332,9.998e-05,2]
[355972930,1741749040234,-143.02669668,9.998e-05,2]
[355972931,1741749040244,-500.0,9.998e-05,2]
[355972932,1741749040254,-500.0,9.998e-05,2]
[355972933,1741749040264,-500.0,9.998e-05,2]
[355972934,1741749040274,-500.0,9.998e-05,2]
[355972935,1741749040284,-216.41462539,9.998e-05,2]
[355972936,1741749040296,-283.58537461,9.998e-05,2]
[355972937,1741749040309,-500.0,9.998e-05,2]
[355972938,1741749040321,-500.0,9.998e-05,2]
[355972939,1741749040330,-500.0,9.998e-05,2]
[355972940,1741749040340,-500.0,9.998e-05,2]
[355972941,1741749040354,-500.0,9.998e-05,2]
[355972942,1741749040363,-101.26439604,9.998e-05,2]
[355972943,1741749040375,-398.73560396,9.998e-05,2]
[355972944,1741749040384,-500.0,9.998e-05,2]
[355972945,1741749040395,-500.0,9.998e-05,2]
[355972946,1741749040405,-639.18,9.998e-05,2]
[355972947,1741749040415,-413.19716674,9.998e-05,2]
[355972948,1741749040430,-113.81283326,9.998e-05,2]
[355972949,1741749040440,-500.0,9.998e-05,2]
[355972950,1741749040451,-578.53,9.998e-05,2]
[355972951,1741749040460,-186.69373382,9.998e-05,2]
[355972952,1741749040470,-500.0,9.998e-05,2]
[355972953,1741749040480,-500.0,9.998e-05,2]
[355972954,1741749040489,-588.53781403,9.998e-05,2]
[355972955,1741749040499,-500.0,9.998e-05,2]
[355972956,1741749040510,-659.06,9.998e-05,2]
[355972957,1741749040520,-254.89137976,9.998e-05,2]
[355972958,1741749040530,-500.0,9.998e-05,2]
[355972959,1741749040541,-500.0,9.998e-05,2]
[355972960,1741749040550,-598.7,9.998e-05,2]
[355972961,1741749040559,-964.72,9.998e-05,2]
[355972962,1741749040570,-500.0,9.998e-05,2]
[355972963,1741749040579,-500.0,9.998e-05,2]
[355972964,1741749040589,-580.56,9.998e-05,2]
[355972965,1741749040598,-500.0,9.998e-05,2]
[355972966,1741749040608,-500.0,9.998e-05,2]
[355972967,1741749040617,-500.0,9.998e-05,2]
[355972968,1741749040627,-621.44,9.998e-05,2]
[355972969,1741749040636,-508.86303817,9.998e-05,2]
[355972970,1741749040646,-712.61,9.998e-05,2]
[355972971,1741749040655,-500.0,9.998e-05,2]
[355972972,1741749040665,-559.71,9.998e-05,2]
[355972973,1741749040675,-532.53,9.998e-05,2]
[355972974,1741749040684,-500.0,9.998e-05,2]
[355972975,1741749040694,-500.0,9.998e-05,2]
[355972976,1741749040703,-500.0,9.998e-05,2]
[355972977,1741749040713,-500.0,9.998e-05,2]
[355972978,1741749040722,-722.04,9.998e-05,2]
[355972979,1741749040732,-900.33,9.998e-05,2]
[355972980,1741749040741,-572.04,9.998e-05,2]
[355972981,1741749040751,-662.51,9.998e-05,2]
[355972982,1741749040760,-500.0,9.998e-05,2]
[355972983,1741749040769,-500.0,9.998e-05,2]
[355972984,1741749040779,-730.43,9.998e-05,2]
[355972985,1741749040789,-500.0,9.998e-05,2]
[355972986,1741749040798,-500.0,9.998e-05,2]
[355972987,1741749040808,-500.0,9.998e-05,2]
[355972989,1741749040817,-1055.126334,9.998e-05,2]
[355972990,1741749040827,-1225.75,9.998e-05,2]
[355972991,1741749040836,-733.67,9.998e-05,2]
[355972992,1741749040846,-650.69,9.998e-05,2]
[355972993,1741749040855,-1650.27,9.998e-05,2]
[355972994,1741749040865,-500.0,9.998e-05,2]
[355972995,1741749040874,-500.0,9.998e-05,2]
[355972996,1741749040883,-150.942088,9.998e-05,2]
[355972997,1741749040893,-500.0,9.998e-05,2]
[355972998,1741749040902,-154.034078,9.998e-05,2]
[355972999,1741749040912,-500.0,9.998e-05,2]
[355973000,1741749040921,-153.003788,9.998e-05,2]
[355973001,1741749040931,-500.0,9.998e-05,2]
[355973002,1741749040950,-633.29,9.998e-05,2]
[355973003,1741749040967,-500.0,9.998e-05,2]
[355973004,1741749040978,-500.0,9.998e-05,2]
[355973005,1741749040988,-500.0,9.998e-05,2]
[355973006,1741749040998,-1370.36,9.998e-05,2]
[355973007,1741749041007,-500.0,9.998e-05,2]
[355973008,1741749041017,-500.0,9.998e-05,2]
[355973009,1741749041027,-583.61,9.998e-05,2]
[355973010,1741749041037,-609.95,9.998e-05,2]
[355973011,1741749041047,-2341.94,9.998e-05,2]
[355973012,1741749041056,-638.06,9.998e-05,2]
[355973013,1741749041065,-525.7,9.998e-05,2]
[355973014,1741749041075,-761.94,9.998e-05,2]
[355973015,1741749041084,-846.58,9.998e-05,2]
[355973016,1741749041093,-500.0,9.998e-05,2]
[355973017,1741749041102,-554.65,9.998e-05,2]
[355973018,1741749041111,-500.0,9.998e-05,2]
[355973019,1741749041120,-1475.7,9.998e-05,2]
[355973020,1741749041129,-1145.17,9.998e-05,2]
[355973021,1741749041138,-1577.4,9.998e-05,2]
[355973022,1741749041147,-500.0,9.998e-05,2]
[355973023,1741749041156,-500.0,9.998e-05,2]
[355973024,1741749041165,-500.0,9.998e-05,2]
[355973025,1741749041175,-558.6,9.998e-05,2]
[355973026,1741749041184,-2085.47,9.998e-05,2]
[355973027,1741749041194,-500.0,9.998e-05,2]
[355973028,1741749041203,-500.0,9.998e-05,2]
[355973029,1741749041213,-611.38,9.998e-05,2]
[355973030,1741749041223,-1868.01,9.998e-05,2]
[355973031,1741749041232,-500.0,9.998e-05,2]
[355973032,1741749041241,-500.0,9.998e-05,2]
[355973033,1741749041250,-552.13,9.998e-05,2]
[355973034,1741749041259,-2662.39,9.998e-05,2]
[355973035,1741749041269,-500.0,9.998e-05,2]
[355973036,1741749041279,-500.0,9.998e-05,2]
[355973037,1741749041290,-500.0,9.998e-05,2]
[355973038,1741749041299,-2178.76,9.998e-05,2]
[355973039,1741749041308,-500.0,9.998e-05,2]
[355973040,1741749041317,-1089.54,9.998e-05,2]
[355973041,1741749041326,-704.69,9.998e-05,2]
[355973042,1741749041335,-973.52,9.998e-05,2]
[355973043,1741749041345,-518.58,9.998e-05,2]
[355973044,1741749041358,-4411.12,9.998e-05,2]
[355973045,1741749041367,-1332.97,9.998e-05,2]
[355973046,1741749041376,-535.95,9.998e-05,2]
[355973047,1741749041384,-500.0,9.998e-05,2]
[355973048,1741749041394,-678.34,9.998e-05,2]
[355973049,1741749041403,-1866.44,9.998e-05,2]
[355973050,1741749041412,-545.69,9.998e-05,2]
[355973051,1741749041421,-860.61,9.998e-05,2]
[355973052,1741749041431,-1276.8,9.998e-05,2]
[355973053,1741749041440,-854.86,9.998e-05,2]
[355973054,1741749041449,-500.0,9.998e-05,2]
[355973055,1741749041458,-500.0,9.998e-05,2]
[355973056,1741749041467,-860.41,9.998e-05,2]
[355973057,1741749041476,-1182.95,9.998e-05,2]
[355973058,1741749041485,-652.49,9.998e-05,2]
[355973059,1741749041494,-899.16,9.998e-05,2]
[355973060,1741749041502,-500.0,9.998e-05,2]
[355973061,1741749041511,-765.49,9.998e-05,2]
[355973062,1741749041521,-686.33,9.998e-05,2]
[355973063,1741749041529,-2754.39,9.998e-05,2]
[355973064,1741749041540,-500.0,9.998e-05,2]
[355973065,1741749041548,-1265.16,9.998e-05,2]
[355973066,1741749041557,-981.57,9.998e-05,2]
[355973067,1741749041566,-772.85,9.998e-05,2]
[355973068,1741749041575,-830.51,9.998e-05,2]
[355973069,1741749041584,-1218.46,9.998e-05,2]
[355973070,1741749041593,-500.0,9.998e-05,2]
[355973071,1741749041602,-500.0,9.998e-05,2]
[355973072,1741749041610,-362.04000336,9.998e-05,2]
[355973073,1741749041619,-500.0,9.998e-05,2]
[355973074,1741749041628,-956.07,9.998e-05,2]
[355973075,1741749041637,-500.0,9.998e-05,2]
[355973076,1741749041646,-500.0,9.998e-05,2]
[355973077,1741749041655,-500.0,9.998e-05,2]
[355973078,1741749041664,-500.0,9.998e-05,2]
[355973079,1741749041673,-2249.0,9.998e-05,2]
[355973080,1741749041682,-500.0,9.998e-05,2]
[355973081,1741749041691,-500.0,9.998e-05,2]
[355973082,1741749041699,-4020.07,9.998e-05,2]
[355973083,1741749041708,-594.24,9.998e-05,2]
[355973084,1741749041717,-500.0,9.998e-05,2]
[355973085,1741749041726,-500.0,9.998e-05,2]
[355973086,1741749041735,-510.80671853,9.998e-05,2]
[355973087,1741749041745,-500.0,9.998e-05,2]
[355973088,1741749041754,-500.0,9.998e-05,2]
[355973089,1741749041763,-500.0,9.998e-05,2]
[355973090,1741749041772,-500.0,9.999e-05,2]
[355973091,1741749041781,-500.0,9.999e-05,2]
[355973092,1741749041791,-500.0,9.999e-05,2]
[355973093,1741749041801,-500.0,9.999e-05,2]
[355973094,1741749041809,-657.31,9.999e-05,2]
[355973095,1741749041818,-500.0,9.999e-05,2]
[355973096,1741749041827,-500.0,9.999e-05,2]
[355973097,1741749041836,-579.67,9.999e-05,2]
[355973098,1741749041845,-500.0,9.999e-05,2]
[355973099,1741749041854,-500.0,9.999e-05,2]
[355973100,1741749041863,-500.0,9.999e-05,2]
[355973101,1741749041871,-500.0,9.999e-05,2]
[355973102,1741749041881,-621.73,9.999e-05,2]
[355973103,1741749041890,-243.72682941,9.999e-05,2]
[355973104,1741749041898,-500.0,9.999e-05,2]
[355973105,1741749041908,-561.33,9.999e-05,2]
[355973106,1741749041917,-500.0,9.999e-05,2]
[355973107,1741749041927,-500.0,9.999e-05,2]
[355973108,1741749041936,-686.87,9.999e-05,2]
[355973109,1741749041945,-500.0,9.999e-05,2]
[355973110,1741749041954,-500.0,9.999e-05,2]
[355973111,1741749041963,-500.0,9.999e-05,2]
[355973112,1741749041971,-500.0,9.999e-05,2]
[355973113,1741749041980,-500.0,9.999e-05,2]
[355973114,1741749041989,-500.0,9.999e-05,2]
[355973115,1741749041998,-614.75,9.999e-05,2]
[355973116,1741749042007,-500.0,9.999e-05,2]
[355973117,1741749042016,-569.93,9.999e-05,2]
[355973118,1741749042025,-524.76,9.999e-05,2]
[355973119,1741749042035,-500.0,9.999e-05,2]
[355973120,1741749042044,-500.0,9.999e-05,2]
[355973121,1741749042054,-500.0,9.999e-05,2]
[355973122,1741749042063,-500.0,9.999e-05,2]
[355973123,1741749042072,-500.0,9.999e-05,2]
[355973124,1741749042081,-500.0,9.999e-05,2]
[355973125,1741749042090,-795.34,9.999e-05,2]
[355973126,1741749042100,-500.0,9.999e-05,2]
[355973127,1741749042109,-500.0,9.999e-05,2]
[355973128,1741749042358,-732.65,9.999e-05,2]
[355973129,1741749042368,-500.0,9.999e-05,2]
[355973130,1741749042377,-500.0,9.999e-05,2]
[355973131,1741749042386,-500.0,9.999e-05,2]
[355973132,1741749042397,-638.34,9.999e-05,2]
[355973133,1741749042406,-694.14,9.999e-05,2]
[355973134,1741749042416,-598.18,9.999e-05,2]
[355973135,1741749042425,-500.0,9.999e-05,2]
[355973136,1741749042436,-500.0,9.999e-05,2]
[355973137,1741749042445,-500.0,9.999e-05,2]
[355973138,1741749042454,-669.0,9.999e-05,2]
[355973139,1741749042463,-625.12,9.999e-05,2]
[355973140,1741749042473,-565.95,9.999e-05,2]
[355973141,1741749042483,-500.0,9.999e-05,2]
[355973142,1741749042492,-500.0,9.999e-05,2]
[355973143,1741749042500,-500.0,9.999e-05,2]
[355973144,1741749042510,-500.0,9.999e-05,2]
[355973145,1741749042519,-655.30450975,9.999e-05,2]
[355973146,1741749042528,-500.0,9.999e-05,2]
[355973147,1741749042539,-500.0,9.999e-05,2]
[355973148,1741749042548,-500.0,9.999e-05,2]
[355973149,1741749042556,-500.0,9.999e-05,2]
[355973150,1741749042565,-500.0,9.999e-05,2]
[355973151,1741749042574,-500.0,9.999e-05,2]
[355973152,1741749042582,-624.05,9.999e-05,2]
[355973153,1741749042591,-500.0,9.999e-05,2]
[355973154,1741749042600,-500.0,9.999e-05,2]
[355973155,1741749042608,-500.0,9.999e-05,2]
[355973156,1741749042617,-414.5296284,9.999e-05,2]
[355973157,1741749042626,-574.2,9.999e-05,2]
[355973158,1741749042634,-500.0,9.999e-05,2]
[355973159,1741749042643,-500.0,9.999e-05,2]
[355973160,1741749042652,-500.0,9.999e-05,2]
[355973161,1741749042661,-500.0,9.999e-05,2]
[355973162,1741749042670,-500.0,9.999e-05,2]
[355973163,1741749042679,-500.0,9.999e-05,2]
[355973164,1741749042688,-743.06,9.999e-05,2]
[355973165,1741749042697,-500.0,9.999e-05,2]
[355973166,1741749042705,-500.0,9.999e-05,2]
[355973167,1741749042714,-647.89,9.999e-05,2]
[355973168,1741749042723,-500.0,9.999e-05,2]
[355973169,1741749042732,-500.0,9.999e-05,2]
[355973170,1741749042740,-714.94,9.999e-05,2]
[355973171,1741749042749,-528.7,9.999e-05,2]
[355973172,1741749042758,-684.91,9.999e-05,2]
[355973173,1741749042767,-585.21,9.999e-05,2]
[355973174,1741749042775,-531.32,9.999e-05,2]
[355973175,1741749042786,-181.55685217,9.999e-05,3]
[355973176,1741749042795,-500.0,9.999e-05,2]
[355973177,1741749042804,-500.0,9.999e-05,2]
[355973178,1741749042813,-500.0,9.999e-05,2]
[355973179,1741749042822,-500.0,9.999e-05,2]
[355973180,1741749042831,-612.24,9.999e-05,2]
[355973181,1741749042840,-500.0,9.999e-05,2]
[355973182,1741749042849,-500.0,9.999e-05,2]
[355973183,1741749042858,-1379.11,9.999e-05,2]
[355973184,1741749042867,-774.28,9.999e-05,2]
[355973185,1741749042876,-500.0,9.999e-05,2]
[355973186,1741749042885,-500.0,9.999e-05,2]
[355973187,1741749042894,-504.52,9.999e-05,2]
[355973188,1741749042903,-507.74,9.999e-05,2]
[355973190,1741749042912,-500.0,9.999e-05,2]
[355973191,1741749042921,-1065.47,9.999e-05,2]
[355973192,1741749042930,-500.0,9.999e-05,2]
[355973193,1741749042939,-500.0,9.999e-05,2]
[355973194,1741749042948,-500.0,9.999e-05,2]
[355973195,1741749042957,-2047.69,9.999e-05,2]
[355973196,1741749042966,-500.0,9.999e-05,2]
[355973197,1741749042976,-500.0,9.999e-05,2]
[355973198,1741749042985,-990.67,9.999e-05,2]
[355973199,1741749042994,-500.0,9.999e-05,2]
[355973200,1741749043003,-1190.92,9.999e-05,2]
[355973201,1741749043012,-500.0,9.999e-05,2]
[355973202,1741749043021,-500.0,9.999e-05,2]
[355973203,1741749043031,-515.45,9.999e-05,2]
[355973204,1741749043041,-1112.95,9.999e-05,2]
[355973205,1741749043050,-500.0,9.999e-05,2]
[355973207,1741749043059,-500.0,9.999e-05,2]
[355973208,1741749043068,-500.0,9.999e-05,2]